[Event "*** Biggest EVER Titled Tuesday"]
[Site "Chess.com"]
[Date "2018.04.17"]
[Round "1"]
[White "chessking2151"]
[Black "Fandorine"]
[Result "0-1"]
[WhiteElo "2365"]
[BlackElo "2706"]
[TimeControl "180+2"]
[EndTime "13:08:21 PDT"]
[Termination "Fandorine won by resignation"]

1. Nf3 {[%clk 0:03:01.5]} 1... Nf6 {[%clk 0:03:00.9]} 2. c4 {[%clk 0:03:00.9]}
2... g6 {[%clk 0:03:02.3]} 3. Nc3 {[%clk 0:03:01.2]} 3... Bg7 {[%clk 0:03:03.9]}
4. e4 {[%clk 0:02:59.9]} 4... d6 {[%clk 0:03:05.1]} 5. d4 {[%clk 0:03:01.1]}
5... O-O {[%clk 0:03:06.6]} 6. Be2 {[%clk 0:02:59.6]} 6... Na6 {[%clk
0:03:06.2]} 7. O-O {[%clk 0:02:58]} 7... e5 {[%clk 0:03:07.3]} 8. d5 {[%clk
0:02:54.6]} 8... Nc5 {[%clk 0:03:08]} 9. Nd2 {[%clk 0:02:55.1]} 9... a5 {[%clk
0:03:06.9]} 10. b3 {[%clk 0:02:54]} 10... Bh6 {[%clk 0:03:04.8]} 11. f3 {[%clk
0:02:45.9]} 11... Nh5 {[%clk 0:03:02.7]} 12. g3 {[%clk 0:02:38.8]} 12... f5
{[%clk 0:03:00.7]} 13. Ndb1 {[%clk 0:02:35.7]} 13... Bxc1 {[%clk 0:02:55.3]} 14.
Qxc1 {[%clk 0:02:36.7]} 14... f4 {[%clk 0:02:46.4]} 15. g4 {[%clk 0:02:37]}
15... Nf6 {[%clk 0:02:47.6]} 16. Nd2 {[%clk 0:02:35]} 16... h5 {[%clk
0:02:48.9]} 17. h3 {[%clk 0:02:34.8]} 17... Nh7 {[%clk 0:02:50.1]} 18. Kg2
{[%clk 0:02:34.4]} 18... Kg7 {[%clk 0:02:51.3]} 19. Rh1 {[%clk 0:02:33.4]} 19...
Rh8 {[%clk 0:02:52.1]} 20. Qe1 {[%clk 0:02:33.1]} 20... Bd7 {[%clk 0:02:52.4]}
21. a3 {[%clk 0:02:26.2]} 21... Qe7 {[%clk 0:02:52.3]} 22. Qf2 {[%clk
0:02:13.4]} 22... hxg4 {[%clk 0:02:40.9]} 23. hxg4 {[%clk 0:02:11.6]} 23... Ng5
{[%clk 0:02:42.5]} 24. Rxh8 {[%clk 0:02:02.4]} 24... Rxh8 {[%clk 0:02:44.4]} 25.
Rh1 {[%clk 0:02:03]} 25... Qd8 {[%clk 0:02:44.6]} 26. b4 {[%clk 0:01:55]} 26...
Na6 {[%clk 0:01:50.8]} 27. Na2 {[%clk 0:01:53.3]} 27... Rxh1 {[%clk 0:01:40.3]}
28. Kxh1 {[%clk 0:01:52.9]} 28... Qh8+ {[%clk 0:01:42.2]} 29. Qh2 {[%clk
0:01:50.2]} 29... Qa8 {[%clk 0:01:40.9]} 30. b5 {[%clk 0:01:27.9]} 30... Nc5
{[%clk 0:01:40.3]} 31. Qh4 {[%clk 0:01:27.5]} 31... Nf7 {[%clk 0:01:35.5]} 32.
Kg2 {[%clk 0:01:24.6]} 32... g5 {[%clk 0:00:56.8]} 33. Qh1 {[%clk 0:01:23.4]}
33... Nh8 {[%clk 0:00:53.7]} 34. Nc3 {[%clk 0:01:17.3]} 34... Ng6 {[%clk
0:00:54.4]} 35. Kf1 {[%clk 0:00:59.5]} 35... Nh4 {[%clk 0:00:48.7]} 36. Ke1
{[%clk 0:00:51.2]} 36... a4 {[%clk 0:00:37.2]} 37. Kd1 {[%clk 0:00:49.7]} 37...
Nb3 {[%clk 0:00:31.3]} 38. Nxb3 {[%clk 0:00:41.9]} 38... axb3 {[%clk 0:00:32.4]}
39. a4 {[%clk 0:00:43.4]} 39... Qa5 {[%clk 0:00:33.2]} 40. Kd2 {[%clk
0:00:43.5]} 40... Qb6 {[%clk 0:00:29.1]} 41. Qc1 {[%clk 0:00:34]} 41... Nxf3+
{[%clk 0:00:23.6]} 42. Bxf3 {[%clk 0:00:28]} 42... Qe3+ {[%clk 0:00:24.6]} 43.
Kd1 {[%clk 0:00:29.9]} 43... Qxf3+ {[%clk 0:00:25.8]} 44. Kd2 {[%clk 0:00:28.6]}
44... Qe3+ {[%clk 0:00:25.7]} 0-1

[Event "*** Biggest EVER Titled Tuesday"]
[Site "Chess.com"]
[Date "2018.04.17"]
[Round "1"]
[White "champ2005"]
[Black "Jbd735"]
[Result "1-0"]
[WhiteElo "2608"]
[BlackElo "2276"]
[TimeControl "180+2"]
[EndTime "13:08:21 PDT"]
[Termination "champ2005 won by resignation"]

1. e4 {[%clk 0:03:00]} 1... e5 {[%clk 0:03:00]} 2. Nf3 {[%clk 0:03:00.4]} 2...
Nc6 {[%clk 0:03:00.9]} 3. Bc4 {[%clk 0:03:01.9]} 3... Bc5 {[%clk 0:03:01.1]} 4.
O-O {[%clk 0:03:00.8]} 4... Nf6 {[%clk 0:03:01.5]} 5. d3 {[%clk 0:03:01.4]} 5...
d6 {[%clk 0:02:56.6]} 6. c3 {[%clk 0:03:02.3]} 6... a6 {[%clk 0:02:55.3]} 7. a4
{[%clk 0:03:02.5]} 7... h6 {[%clk 0:02:51]} 8. Na3 {[%clk 0:02:57.9]} 8... O-O
{[%clk 0:02:49.6]} 9. Nc2 {[%clk 0:02:59]} 9... Ba7 {[%clk 0:02:47.4]} 10. Be3
{[%clk 0:02:59.7]} 10... d5 {[%clk 0:02:34]} 11. exd5 {[%clk 0:02:56.9]} 11...
Nxd5 {[%clk 0:02:34.7]} 12. Bxa7 {[%clk 0:02:57.5]} 12... Rxa7 {[%clk 0:02:35]}
13. Re1 {[%clk 0:02:44.7]} 13... Re8 {[%clk 0:02:32.7]} 14. h3 {[%clk
0:02:41.5]} 14... Ra8 {[%clk 0:02:14.8]} 15. d4 {[%clk 0:02:38]} 15... e4 {[%clk
0:02:14.3]} 16. Nd2 {[%clk 0:02:33.4]} 16... Bf5 {[%clk 0:02:09.8]} 17. Ne3
{[%clk 0:02:33.5]} 17... Nxe3 {[%clk 0:01:57.3]} 18. fxe3 {[%clk 0:02:35.4]}
18... Qg5 {[%clk 0:01:44.7]} 19. Kh2 {[%clk 0:02:30.2]} 19... Bg6 {[%clk
0:01:37.9]} 20. Qe2 {[%clk 0:02:30]} 20... Kh8 {[%clk 0:01:34.9]} 21. Rf1 {[%clk
0:02:29.8]} 21... f5 {[%clk 0:01:34.7]} 22. Rf4 {[%clk 0:02:30.8]} 22... Nd8
{[%clk 0:01:29]} 23. Raf1 {[%clk 0:02:28.4]} 23... Ne6 {[%clk 0:01:29.5]} 24.
Bxe6 {[%clk 0:02:29.4]} 24... Rxe6 {[%clk 0:01:31.3]} 25. Nc4 {[%clk 0:02:29.9]}
25... Qe7 {[%clk 0:01:15.2]} 26. Ne5 {[%clk 0:02:29.8]} 26... Bh7 {[%clk
0:01:15.5]} 27. g4 {[%clk 0:02:26.9]} 27... fxg4 {[%clk 0:00:48.3]} 28. Qxg4
{[%clk 0:02:27.3]} 28... Rf6 {[%clk 0:00:43.5]} 29. Rxf6 {[%clk 0:02:23]} 29...
gxf6 {[%clk 0:00:44.6]} 30. Ng6+ {[%clk 0:02:24.2]} 30... Bxg6 {[%clk
0:00:45.6]} 31. Qxg6 {[%clk 0:02:25.6]} 31... Qg7 {[%clk 0:00:28.5]} 32. Rxf6
{[%clk 0:02:26.4]} 32... Qxg6 {[%clk 0:00:27.5]} 33. Rxg6 {[%clk 0:02:27.5]}
33... Rf8 {[%clk 0:00:28.4]} 34. Rxh6+ {[%clk 0:02:25]} 34... Kg7 {[%clk
0:00:29]} 35. Re6 {[%clk 0:02:25.9]} 35... Rf2+ {[%clk 0:00:27.6]} 36. Kg1
{[%clk 0:02:26.7]} 36... Rxb2 {[%clk 0:00:24.1]} 37. Re7+ {[%clk 0:02:27.5]}
37... Kf6 {[%clk 0:00:24.3]} 38. Rxc7 {[%clk 0:02:28.6]} 38... Kg5 {[%clk
0:00:23.6]} 39. Kf1 {[%clk 0:02:10.8]} 39... Kh4 {[%clk 0:00:23.7]} 40. Rg7
{[%clk 0:02:10.6]} 40... Kxh3 {[%clk 0:00:21.2]} 41. Ke1 {[%clk 0:02:11.7]}
41... Rc2 {[%clk 0:00:18.5]} 42. Rxb7 {[%clk 0:02:12.4]} 42... Rxc3 {[%clk
0:00:19.5]} 43. Kd2 {[%clk 0:02:13.3]} 43... Rd3+ {[%clk 0:00:19.7]} 44. Ke2
{[%clk 0:02:14.1]} 44... Ra3 {[%clk 0:00:20.5]} 45. Re7 {[%clk 0:02:13.7]} 45...
Ra2+ {[%clk 0:00:19.5]} 46. Kd1 {[%clk 0:02:12.7]} 46... Kg3 {[%clk 0:00:14.4]}
47. Rxe4 {[%clk 0:02:13.3]} 47... Kf3 {[%clk 0:00:14.9]} 48. Re6 {[%clk
0:02:13.9]} 48... Rxa4 {[%clk 0:00:15.6]} 49. d5 {[%clk 0:02:14.8]} 49... Ra2
{[%clk 0:00:09.6]} 50. d6 {[%clk 0:02:13.5]} 50... Ra5 {[%clk 0:00:08.9]} 51.
Kc2 {[%clk 0:02:12.5]} 51... Rd5 {[%clk 0:00:09.3]} 52. Kc3 {[%clk 0:02:10.6]}
52... a5 {[%clk 0:00:10]} 53. e4 {[%clk 0:02:11.4]} 53... Rd1 {[%clk 0:00:10.3]}
54. e5 {[%clk 0:02:12.3]} 54... Ke4 {[%clk 0:00:09.9]} 55. Re7 {[%clk
0:02:12.4]} 55... a4 {[%clk 0:00:09.4]} 56. Kb4 {[%clk 0:02:11]} 56... Rd4+
{[%clk 0:00:09.4]} 57. Ka3 {[%clk 0:02:12.1]} 57... Kf5 {[%clk 0:00:08.6]} 58.
d7 {[%clk 0:02:12.6]} 58... Ke4 {[%clk 0:00:04.9]} 59. e6 {[%clk 0:02:10]} 59...
Kd3 {[%clk 0:00:04.6]} 60. Re8 {[%clk 0:02:10.7]} 60... Kc3 {[%clk 0:00:03.4]}
61. d8=Q {[%clk 0:02:10.8]} 1-0

[Event "*** Biggest EVER Titled Tuesday"]
[Site "Chess.com"]
[Date "2018.04.17"]
[Round "1"]
[White "AkshatChandra"]
[Black "Th3ChessViking"]
[Result "1-0"]
[WhiteElo "2784"]
[BlackElo "2404"]
[TimeControl "180+2"]
[EndTime "13:08:22 PDT"]
[Termination "AkshatChandra won by resignation"]

1. d4 {[%clk 0:02:56.8]} 1... Nf6 {[%clk 0:03:00.7]} 2. Nf3 {[%clk 0:02:58]}
2... e6 {[%clk 0:02:58.2]} 3. Bf4 {[%clk 0:02:59.5]} 3... c5 {[%clk 0:02:59]} 4.
e3 {[%clk 0:03:00.2]} 4... cxd4 {[%clk 0:02:59.9]} 5. exd4 {[%clk 0:03:01.4]}
5... b6 {[%clk 0:03:01.4]} 6. Bd3 {[%clk 0:03:01.8]} 6... Bb7 {[%clk 0:03:02.9]}
7. O-O {[%clk 0:03:02.1]} 7... Be7 {[%clk 0:03:04.4]} 8. h3 {[%clk 0:03:03]}
8... d6 {[%clk 0:03:05.7]} 9. Re1 {[%clk 0:03:01.9]} 9... O-O {[%clk 0:03:06.2]}
10. c3 {[%clk 0:03:01.4]} 10... a6 {[%clk 0:03:07.5]} 11. Nbd2 {[%clk 0:03:01]}
11... Nbd7 {[%clk 0:03:08.4]} 12. a4 {[%clk 0:03:01.6]} 12... Qc7 {[%clk
0:03:09.2]} 13. Bh2 {[%clk 0:03:01.5]} 13... Rfe8 {[%clk 0:03:09.8]} 14. Nc4
{[%clk 0:02:55.5]} 14... Qc6 {[%clk 0:03:08.9]} 15. Bf1 {[%clk 0:02:36.6]} 15...
Bf8 {[%clk 0:03:08.3]} 16. Qb3 {[%clk 0:02:14.4]} 16... g6 {[%clk 0:02:55.2]}
17. Ne3 {[%clk 0:02:08.2]} 17... Rac8 {[%clk 0:02:39.2]} 18. Rad1 {[%clk
0:02:03.6]} 18... Nd5 {[%clk 0:02:24.4]} 19. Nxd5 {[%clk 0:02:01.1]} 19... Qxd5
{[%clk 0:02:22.8]} 20. Qxd5 {[%clk 0:02:02.2]} 20... exd5 {[%clk 0:02:18.4]} 21.
Bd3 {[%clk 0:01:47.3]} 21... Nf6 {[%clk 0:02:17.4]} 22. Nd2 {[%clk 0:01:44.9]}
22... Ne4 {[%clk 0:02:15.9]} 23. Nf1 {[%clk 0:01:44.7]} 23... Kg7 {[%clk
0:02:07.3]} 24. Ne3 {[%clk 0:01:44.5]} 24... Re6 {[%clk 0:01:56]} 25. f3 {[%clk
0:01:39.6]} 25... Nf6 {[%clk 0:01:54.5]} 26. Kf2 {[%clk 0:01:38.6]} 26... Rce8
{[%clk 0:01:54.4]} 27. Nc2 {[%clk 0:01:39.8]} 27... h5 {[%clk 0:01:50.4]} 28.
Bf4 {[%clk 0:01:36.2]} 28... Rxe1 {[%clk 0:01:32.9]} 29. Nxe1 {[%clk 0:01:38.1]}
29... Nd7 {[%clk 0:01:27.2]} 30. Nc2 {[%clk 0:01:36.2]} 30... f6 {[%clk
0:01:22.7]} 31. h4 {[%clk 0:01:36.7]} 31... Be7 {[%clk 0:01:22.6]} 32. Ne3
{[%clk 0:01:37.1]} 32... Nf8 {[%clk 0:01:13.7]} 33. g4 {[%clk 0:01:23.8]} 33...
Ne6 {[%clk 0:01:09.3]} 34. Bg3 {[%clk 0:01:25.1]} 34... hxg4 {[%clk 0:01:03.1]}
35. fxg4 {[%clk 0:01:27]} 35... Kf7 {[%clk 0:00:16.4]} 36. h5 {[%clk 0:01:28.1]}
36... Nf8 {[%clk 0:00:17.6]} 37. Rh1 {[%clk 0:01:15]} 37... g5 {[%clk
0:00:12.1]} 38. Nf5 {[%clk 0:01:07.5]} 38... Bc8 {[%clk 0:00:08.6]} 39. Re1
{[%clk 0:01:02.7]} 39... Bxf5 {[%clk 0:00:08.5]} 40. Bxf5 {[%clk 0:01:04.6]}
40... Bd8 {[%clk 0:00:08]} 41. Bg6+ {[%clk 0:01:05.2]} 41... Nxg6 {[%clk
0:00:08.8]} 42. hxg6+ {[%clk 0:01:07.1]} 42... Kf8 {[%clk 0:00:10.1]} 43. g7+
{[%clk 0:01:08.5]} 43... Kf7 {[%clk 0:00:11.6]} 44. Rxe8 {[%clk 0:01:09.7]}
44... Kxe8 {[%clk 0:00:13.5]} 45. g8=Q+ {[%clk 0:01:11.1]} 1-0

[Event "*** Biggest EVER Titled Tuesday"]
[Site "Chess.com"]
[Date "2018.04.17"]
[Round "1"]
[White "milovanratkovic"]
[Black "omer1997"]
[Result "1-0"]
[WhiteElo "2466"]
[BlackElo "2063"]
[TimeControl "180+2"]
[EndTime "13:08:29 PDT"]
[Termination "milovanratkovic won by resignation"]

1. d4 {[%clk 0:03:01.8]} 1... d5 {[%clk 0:03:00.8]} 2. c4 {[%clk 0:03:02.5]}
2... c6 {[%clk 0:03:01.1]} 3. Nc3 {[%clk 0:03:03]} 3... Nf6 {[%clk 0:03:02.2]}
4. e3 {[%clk 0:03:02.3]} 4... g6 {[%clk 0:02:58.6]} 5. Nf3 {[%clk 0:03:01.6]}
5... Bg7 {[%clk 0:02:59.3]} 6. Bd3 {[%clk 0:02:54.6]} 6... O-O {[%clk
0:02:59.4]} 7. O-O {[%clk 0:02:55.5]} 7... Bg4 {[%clk 0:03:00.1]} 8. h3 {[%clk
0:02:45]} 8... Bxf3 {[%clk 0:03:00.6]} 9. Qxf3 {[%clk 0:02:46.9]} 9... Qd6
{[%clk 0:02:56.4]} 10. b3 {[%clk 0:02:38.2]} 10... Nbd7 {[%clk 0:02:44.9]} 11.
Bb2 {[%clk 0:02:38.4]} 11... e5 {[%clk 0:02:44.6]} 12. cxd5 {[%clk 0:02:35]}
12... cxd5 {[%clk 0:02:43.2]} 13. Qd1 {[%clk 0:02:36.3]} 13... a6 {[%clk
0:02:39.8]} 14. dxe5 {[%clk 0:02:31.4]} 14... Nxe5 {[%clk 0:02:40.6]} 15. Be2
{[%clk 0:02:31.6]} 15... Nc6 {[%clk 0:02:37.4]} 16. Na4 {[%clk 0:02:29.8]} 16...
Rad8 {[%clk 0:02:32.6]} 17. Bf3 {[%clk 0:02:24.8]} 17... b5 {[%clk 0:02:27.9]}
18. Nc3 {[%clk 0:02:08.2]} 18... d4 {[%clk 0:02:07.1]} 19. Ne2 {[%clk
0:01:52.7]} 19... dxe3 {[%clk 0:01:44.7]} 20. fxe3 {[%clk 0:01:53.4]} 20... Nd5
{[%clk 0:01:13.5]} 21. Bxg7 {[%clk 0:01:49.5]} 21... Kxg7 {[%clk 0:01:15.4]} 22.
Rc1 {[%clk 0:01:40.1]} 22... Ne5 {[%clk 0:01:09.7]} 23. Qd4 {[%clk 0:01:40]}
23... Nb4 {[%clk 0:00:58.8]} 24. a3 {[%clk 0:01:02.6]} 24... Nd3 {[%clk
0:00:59.1]} 25. Rcd1 {[%clk 0:00:56.7]} 25... Qxa3 {[%clk 0:00:45.7]} 26. Qh4
{[%clk 0:00:32.8]} 26... Qc5 {[%clk 0:00:43.5]} 27. Nd4 {[%clk 0:00:32.8]} 27...
Nxf3+ {[%clk 0:00:36.6]} 28. Rxf3 {[%clk 0:00:33.1]} 28... Ne5 {[%clk
0:00:32.5]} 29. Rff1 {[%clk 0:00:32.8]} 29... Qb6 {[%clk 0:00:20.7]} 30. Kh1
{[%clk 0:00:24.7]} 30... Rde8 {[%clk 0:00:21.6]} 31. Qg5 {[%clk 0:00:17.8]}
31... Kg8 {[%clk 0:00:19.1]} 32. Qh6 {[%clk 0:00:18.1]} 32... f5 {[%clk
0:00:18.6]} 33. Nxf5 {[%clk 0:00:16.2]} 33... Rxf5 {[%clk 0:00:18.3]} 34. Rxf5
{[%clk 0:00:17.4]} 34... gxf5 {[%clk 0:00:20]} 35. Qxb6 {[%clk 0:00:17.4]} 35...
Nf7 {[%clk 0:00:20.2]} 36. Qxa6 {[%clk 0:00:17.6]} 36... Rxe3 {[%clk 0:00:18.6]}
37. Qxb5 {[%clk 0:00:18.2]} 37... Re5 {[%clk 0:00:16.3]} 38. Qb8+ {[%clk
0:00:18.1]} 38... Kg7 {[%clk 0:00:17.5]} 39. Rd7 {[%clk 0:00:19.2]} 1-0

[Event "*** Biggest EVER Titled Tuesday"]
[Site "Chess.com"]
[Date "2018.04.17"]
[Round "1"]
[White "Annawel"]
[Black "VeraNebolsina"]
[Result "1-0"]
[WhiteElo "2872"]
[BlackElo "2424"]
[TimeControl "180+2"]
[EndTime "13:08:33 PDT"]
[Termination "Annawel won by resignation"]

1. Nf3 {[%clk 0:02:58.3]} 1... Nf6 {[%clk 0:02:58.5]} 2. b3 {[%clk 0:02:58.7]}
2... g6 {[%clk 0:02:58.7]} 3. Bb2 {[%clk 0:02:58.8]} 3... Bg7 {[%clk 0:02:59.9]}
4. g3 {[%clk 0:03:00.4]} 4... O-O {[%clk 0:02:59.8]} 5. Bg2 {[%clk 0:03:01.7]}
5... d6 {[%clk 0:03:00.8]} 6. d4 {[%clk 0:03:03]} 6... e5 {[%clk 0:02:59.4]} 7.
dxe5 {[%clk 0:03:04.2]} 7... Ng4 {[%clk 0:02:57.7]} 8. c4 {[%clk 0:03:04.7]}
8... Nd7 {[%clk 0:02:48.7]} 9. O-O {[%clk 0:03:04.4]} 9... dxe5 {[%clk
0:02:42.9]} 10. h3 {[%clk 0:02:53]} 10... Nh6 {[%clk 0:02:42.8]} 11. e4 {[%clk
0:02:43.3]} 11... Qe7 {[%clk 0:02:30.4]} 12. Ba3 {[%clk 0:02:31.9]} 12... c5
{[%clk 0:02:17.9]} 13. Nc3 {[%clk 0:02:32.2]} 13... Rd8 {[%clk 0:02:13.4]} 14.
Nd5 {[%clk 0:02:31.4]} 14... Qd6 {[%clk 0:02:14.4]} 15. Qd2 {[%clk 0:01:59.6]}
15... Nf8 {[%clk 0:02:05.4]} 16. Rad1 {[%clk 0:01:55.9]} 16... Bd7 {[%clk
0:01:46.2]} 17. b4 {[%clk 0:01:43.3]} 17... Qa6 {[%clk 0:01:36.6]} 18. Qc3
{[%clk 0:01:38]} 18... Ne6 {[%clk 0:01:33.3]} 19. bxc5 {[%clk 0:01:23.7]} 19...
Rac8 {[%clk 0:01:33.1]} 20. Ne7+ {[%clk 0:01:24.2]} 20... Kh8 {[%clk 0:01:33.8]}
21. Nxc8 {[%clk 0:01:25.9]} 21... Bxc8 {[%clk 0:01:33.9]} 22. Rxd8+ {[%clk
0:01:26.7]} 22... Nxd8 {[%clk 0:01:35]} 23. Rd1 {[%clk 0:01:26.2]} 23... Nc6
{[%clk 0:01:35.4]} 24. Rd6 {[%clk 0:01:18.8]} 24... Qa4 {[%clk 0:01:33.8]} 25.
Qb3 {[%clk 0:01:18.6]} 25... Qa5 {[%clk 0:01:31.3]} 26. Bb2 {[%clk 0:01:04.8]}
26... Qxc5 {[%clk 0:01:30.5]} 27. Qd3 {[%clk 0:01:01.1]} 27... f6 {[%clk
0:01:14.5]} 28. Ba3 {[%clk 0:00:47.9]} 28... Qa5 {[%clk 0:01:07.7]} 29. Rd5
{[%clk 0:00:40.7]} 29... Qa4 {[%clk 0:00:58.7]} 30. Qb3 {[%clk 0:00:40.4]} 30...
Qa6 {[%clk 0:00:56.4]} 31. Bf1 {[%clk 0:00:40.3]} 31... Be6 {[%clk 0:00:41.8]}
32. c5 {[%clk 0:00:37.6]} 32... Qa5 {[%clk 0:00:38.2]} 33. Bc1 {[%clk
0:00:14.7]} 33... Ng8 {[%clk 0:00:35.5]} 34. Qxb7 {[%clk 0:00:13.9]} 34... Bxd5
{[%clk 0:00:22.6]} 35. exd5 {[%clk 0:00:15.8]} 35... Nd4 {[%clk 0:00:19.3]} 36.
Nxd4 {[%clk 0:00:16.8]} 36... exd4 {[%clk 0:00:19.5]} 37. c6 {[%clk 0:00:18.3]}
37... Qxd5 {[%clk 0:00:20.3]} 38. Qd7 {[%clk 0:00:15.6]} 38... Qc5 {[%clk
0:00:21]} 39. c7 {[%clk 0:00:14.5]} 39... Ne7 {[%clk 0:00:21.7]} 40. Qd8+ {[%clk
0:00:14]} 1-0

[Event "*** Biggest EVER Titled Tuesday"]
[Site "Chess.com"]
[Date "2018.04.17"]
[Round "1"]
[White "Gajuchess"]
[Black "Safar_From_Afar"]
[Result "1-0"]
[WhiteElo "2595"]
[BlackElo "2268"]
[TimeControl "180+2"]
[EndTime "13:08:34 PDT"]
[Termination "Gajuchess won by resignation"]

1. Nf3 {[%clk 0:03:01.9]} 1... g6 {[%clk 0:03:00.2]} 2. d4 {[%clk 0:03:02.6]}
2... Nf6 {[%clk 0:02:59.8]} 3. c4 {[%clk 0:03:03.3]} 3... Bg7 {[%clk 0:03:01]}
4. g3 {[%clk 0:03:04.8]} 4... O-O {[%clk 0:03:01.7]} 5. Bg2 {[%clk 0:03:06]}
5... d6 {[%clk 0:03:02.8]} 6. O-O {[%clk 0:03:06.9]} 6... Nc6 {[%clk 0:03:04.2]}
7. Nc3 {[%clk 0:03:08.1]} 7... Bf5 {[%clk 0:03:05]} 8. b3 {[%clk 0:03:07.9]}
8... Ne4 {[%clk 0:03:04.9]} 9. Bb2 {[%clk 0:03:09.4]} 9... Nxc3 {[%clk 0:03:06]}
10. Bxc3 {[%clk 0:03:11.3]} 10... Be4 {[%clk 0:03:07]} 11. e3 {[%clk 0:03:10.4]}
11... d5 {[%clk 0:03:06.1]} 12. Qe2 {[%clk 0:03:08.1]} 12... a5 {[%clk
0:03:02.4]} 13. Rfd1 {[%clk 0:03:07.9]} 13... a4 {[%clk 0:02:47.7]} 14. b4
{[%clk 0:03:02.8]} 14... dxc4 {[%clk 0:02:47]} 15. Qxc4 {[%clk 0:02:57.6]} 15...
Qd5 {[%clk 0:02:46.4]} 16. Qxd5 {[%clk 0:02:52.4]} 16... Bxd5 {[%clk 0:02:47.3]}
17. Nd2 {[%clk 0:02:43.5]} 17... Bxg2 {[%clk 0:02:47.1]} 18. Kxg2 {[%clk
0:02:45.4]} 18... e5 {[%clk 0:02:40.6]} 19. d5 {[%clk 0:02:45.2]} 19... Ne7
{[%clk 0:02:38.3]} 20. Nc4 {[%clk 0:02:44.1]} 20... f6 {[%clk 0:02:36.2]} 21. b5
{[%clk 0:02:41.4]} 21... Rfd8 {[%clk 0:02:35.4]} 22. e4 {[%clk 0:02:42.6]} 22...
Nc8 {[%clk 0:02:36.1]} 23. Ba5 {[%clk 0:02:37.4]} 23... b6 {[%clk 0:02:34.4]}
24. Bd2 {[%clk 0:02:31]} 24... Bf8 {[%clk 0:02:32.7]} 25. Be3 {[%clk 0:02:29]}
25... Nd6 {[%clk 0:02:31.2]} 26. Nxd6 {[%clk 0:02:29]} 26... Bxd6 {[%clk
0:02:31.4]} 27. Rdc1 {[%clk 0:02:24.8]} 27... Ra5 {[%clk 0:02:23.7]} 28. Rab1
{[%clk 0:02:25.7]} 28... Kf7 {[%clk 0:02:20.9]} 29. f3 {[%clk 0:02:22.7]} 29...
a3 {[%clk 0:02:15.7]} 30. Rc4 {[%clk 0:02:22]} 30... Rda8 {[%clk 0:02:14.6]} 31.
Kf2 {[%clk 0:02:19]} 31... Ra4 {[%clk 0:02:15.6]} 32. Rxa4 {[%clk 0:02:16.1]}
32... Rxa4 {[%clk 0:02:17.5]} 33. Ke2 {[%clk 0:02:17.5]} 33... Rc4 {[%clk
0:02:05.7]} 34. Kd3 {[%clk 0:02:18.2]} 34... Ra4 {[%clk 0:02:02]} 35. g4 {[%clk
0:02:19.4]} 35... g5 {[%clk 0:02:02.1]} 36. Kc3 {[%clk 0:02:17.2]} 36... Ra5
{[%clk 0:02:01.5]} 37. Bd2 {[%clk 0:02:12]} 37... Ra4 {[%clk 0:01:50.3]} 38. Be3
{[%clk 0:02:10.5]} 38... Ra5 {[%clk 0:01:49.4]} 39. Rb3 {[%clk 0:02:08.7]} 39...
Ke7 {[%clk 0:01:47]} 40. Kd3 {[%clk 0:02:09.3]} 40... Kd7 {[%clk 0:01:44.7]} 41.
Bf2 {[%clk 0:02:00.4]} 41... h6 {[%clk 0:01:44]} 42. h4 {[%clk 0:02:00.9]} 42...
Ke7 {[%clk 0:01:44.5]} 43. h5 {[%clk 0:01:37.9]} 43... Kd7 {[%clk 0:01:45.3]}
44. Kc4 {[%clk 0:01:31]} 44... Ra4+ {[%clk 0:01:44.1]} 45. Kd3 {[%clk
0:01:32.3]} 45... Ra5 {[%clk 0:01:45.1]} 46. Be3 {[%clk 0:01:34.2]} 46... Kc8
{[%clk 0:01:35.9]} 47. Bd2 {[%clk 0:01:32.6]} 47... Ra4 {[%clk 0:01:35.8]} 48.
Be3 {[%clk 0:01:31.3]} 48... Ra5 {[%clk 0:01:36.4]} 49. Kc2 {[%clk 0:01:29.2]}
49... Kd7 {[%clk 0:01:34.9]} 50. Kc3 {[%clk 0:01:27.6]} 50... Kc8 {[%clk
0:01:35.3]} 51. Bd2 {[%clk 0:01:27.8]} 51... Ra4 {[%clk 0:01:33.9]} 52. Kd3
{[%clk 0:01:19.3]} 52... Rd4+ {[%clk 0:01:31.1]} 53. Ke2 {[%clk 0:01:20]} 53...
Ra4 {[%clk 0:01:31.8]} 54. Bc3 {[%clk 0:01:20.2]} 54... Kd7 {[%clk 0:01:32.2]}
55. Kd3 {[%clk 0:01:21.2]} 55... Kc8 {[%clk 0:01:33.1]} 56. Bd2 {[%clk
0:01:21.8]} 56... Kd7 {[%clk 0:01:34.2]} 57. Bc3 {[%clk 0:01:16.1]} 57... Kc8
{[%clk 0:01:35.1]} 58. Rb1 {[%clk 0:01:15]} 58... Kd7 {[%clk 0:01:35]} 59. Kc2
{[%clk 0:01:16.1]} 59... Kc8 {[%clk 0:01:26.3]} 60. Kb3 {[%clk 0:01:16.8]} 60...
Ra8 {[%clk 0:01:26.2]} 61. Bb4 {[%clk 0:01:15.5]} 61... Bxb4 {[%clk 0:01:25.2]}
62. Kxb4 {[%clk 0:01:16.3]} 62... Ra5 {[%clk 0:01:19.3]} 63. Rc1 {[%clk
0:01:17.3]} 63... Kb7 {[%clk 0:01:15.4]} 64. Rc6 {[%clk 0:01:17.8]} 1-0